{"text_format":"3","workbook":"xlsx","n_sheets":2,"sheets":["Început","Buget lunar personal"],"not_rendered":{"images":1},"read":"whole","date_system":"1900"}

{"sheet":"Început","index":0,"n_rows":7,"n_cols":2,"rows_kept":7}
[null,"Despre acest șablon"]
[null,"Utilizați această foaie de lucru pentru Bugetul personal lunar pentru a urmări venitul lunar estimat și efectiv, precum și costul estimat și efectiv."]
[null,"Introduceți cheltuielile pentru categorii diferite în tabelele corespunzătoare."]
[null,"Soldul proiectat, Soldul efectiv și Diferența se calculează automat."]
[null,"Notă: "]
[null,"Instrucțiuni suplimentare sunt furnizate în coloana A din foaia de lucru BUGET PERSONAL LUNAR Acest text a fost ascuns intenționat. Pentru a elimina textul, selectați coloana A, apoi DELETE. Pentru a reafișa textul, selectați coloana A, apoi schimbați culoarea de font."]
[null,"Pentru a afla mai multe despre tabelele din foaia de lucru, apăsați SHIFT, apoi F10 într-un tabel, selectați opțiunea TABEL, apoi TEXT ALTERNATIV."]

{"sheet":"Buget lunar personal","index":1,"n_rows":66,"n_cols":10,"rows_kept":66,"merged":[[3,1,3,2],[3,4,4,6],[3,7,4,7],[5,4,6,6],[5,7,6,7],[7,4,8,6],[7,7,8,7],[8,1,8,2],[24,6,24,9],[25,1,25,4],[33,6,33,9],[35,1,35,4],[40,6,40,9],[42,1,42,4],[46,6,46,9],[48,1,48,4],[52,6,52,9],[56,1,56,4],[59,6,59,9],[60,6,61,8],[60,9,61,9],[62,6,63,8],[62,9,63,9],[64,6,65,8],[64,9,65,9],[67,1,67,4]]}
["Creați un Buget personal lunar în această foaie de lucru. Găsiți instrucțiuni utile despre cum să utilizați această foaie de lucru în celulele din această coloană. Apăsați săgeata în jos pentru a începe."]
["Titlul acestei foi de lucru se află în celula din dreapta. Următoarea instrucțiune se află în celula A5.",null,"Buget lunar personal"]
[]
["Eticheta Venit lunar estimat se află în celula din dreapta. Introduceți Venit 1 în celula C5 și Venit suplimentar în C6 pentru a calcula Totalul venitului lunar în C7. Următoarele instrucțiuni se află în celula A7.","Venit lunar estimat",null,null,"Sold estimat\n(Venit estimat minus cheltuieli)",null,null,{"$f":"C7-J61","v":{"v":3405,"d":"3,405.00 lei"}}]
[null,"Venit 1",{"v":4300,"d":"4,300.00 lei"}]
[null,"Venit suplimentar",{"v":300,"d":"300.00 lei"},null,"Sold real\n(Venit real minus cheltuieli)",null,null,{"$f":"C12-J63","v":{"v":3064,"d":"3,064.00 lei"}}]
["Soldul estimat se calculează automat în celula H4, Soldul efectiv, în H6, iar Diferența, în H8. Următoarele instrucțiuni se află în celula A9.","Total venit lunar",{"$f":"SUM(C5:C6)","v":{"v":4600,"d":"4,600.00 lei"}}]
[{"$nulls":4},"Diferență\n(Real minus estimat)",null,null,{"$f":"H6-H4","v":{"v":-341,"d":"-341.00 lei"}}]
["Eticheta Venit lunar efectiv se află în celula din dreapta. Introduceți Venit 1 în celula C10 și Venit suplimentar în C11 pentru a calcula Totalul venitului lunar în C12. Următoarele instrucțiuni se află în celula A14.","Venit lunar efectiv"]
[null,"Venit 1",{"v":4000,"d":"4,000.00 lei"}]
[null,"Venit suplimentar",{"v":300,"d":"300.00 lei"}]
[null,"Total venit lunar",{"$f":"SUM(C10:C11)","v":{"v":4300,"d":"4,300.00 lei"}}]
[]
["Introduceți detalii în tabelul Locuință începând cu celula din dreapta, iar în tabelul Divertisment, începând cu celula G14. Următoarele instrucțiuni se află în celula A27.","LOCUINȚĂ","Costul estimat","Costul real","Diferență",null,"DIVERTISMENT","Costul estimat","Costul real","Diferență"]
[null,"Credit ipotecar sau chirie",{"v":1000,"d":"1,000.00 lei"},{"v":1000,"d":"1,000.00 lei"},{"$f":"Locuință[[#This Row],[Costul estimat]]-Locuință[[#This Row],[Costul real]]","v":{"v":0,"d":"0.00 lei"}},null,"Video/DVD",null,null,{"$f":"Distracție[[#This Row],[Costul estimat]]-Distracție[[#This Row],[Costul real]]","v":{"v":0,"d":"0.00 lei"}}]
[null,"Telefon",{"v":54,"d":"54.00 lei"},{"v":100,"d":"100.00 lei"},{"$f":"Locuință[[#This Row],[Costul estimat]]-Locuință[[#This Row],[Costul real]]","v":{"v":-46,"d":"-46.00 lei"}},null,"CD-uri",null,null,{"$f":"Distracție[[#This Row],[Costul estimat]]-Distracție[[#This Row],[Costul real]]","v":{"v":0,"d":"0.00 lei"}}]
[null,"Electricitate",{"v":44,"d":"44.00 lei"},{"v":56,"d":"56.00 lei"},{"$f":"Locuință[[#This Row],[Costul estimat]]-Locuință[[#This Row],[Costul real]]","v":{"v":-12,"d":"-12.00 lei"}},null,"Filme",null,null,{"$f":"Distracție[[#This Row],[Costul estimat]]-Distracție[[#This Row],[Costul real]]","v":{"v":0,"d":"0.00 lei"}}]
[null,"Gaze",{"v":22,"d":"22.00 lei"},{"v":28,"d":"28.00 lei"},{"$f":"Locuință[[#This Row],[Costul estimat]]-Locuință[[#This Row],[Costul real]]","v":{"v":-6,"d":"-6.00 lei"}},null,"Concerte",null,null,{"$f":"Distracție[[#This Row],[Costul estimat]]-Distracție[[#This Row],[Costul real]]","v":{"v":0,"d":"0.00 lei"}}]
[null,"Apă și canalizare",{"v":8,"d":"8.00 lei"},{"v":8,"d":"8.00 lei"},{"$f":"Locuință[[#This Row],[Costul estimat]]-Locuință[[#This Row],[Costul real]]","v":{"v":0,"d":"0.00 lei"}},null,"Evenimente sportive",null,null,{"$f":"Distracție[[#This Row],[Costul estimat]]-Distracție[[#This Row],[Costul real]]","v":{"v":0,"d":"0.00 lei"}}]
[null,"Cablu",{"v":34,"d":"34.00 lei"},{"v":34,"d":"34.00 lei"},{"$f":"Locuință[[#This Row],[Costul estimat]]-Locuință[[#This Row],[Costul real]]","v":{"v":0,"d":"0.00 lei"}},null,"Teatru live",null,null,{"$f":"Distracție[[#This Row],[Costul estimat]]-Distracție[[#This Row],[Costul real]]","v":{"v":0,"d":"0.00 lei"}}]
[null,"Eliminare reziduri",{"v":10,"d":"10.00 lei"},{"v":10,"d":"10.00 lei"},{"$f":"Locuință[[#This Row],[Costul estimat]]-Locuință[[#This Row],[Costul real]]","v":{"v":0,"d":"0.00 lei"}},null,"Altele",null,null,{"$f":"Distracție[[#This Row],[Costul estimat]]-Distracție[[#This Row],[Costul real]]","v":{"v":0,"d":"0.00 lei"}}]
[null,"Întreținere sau reparații",{"v":23,"d":"23.00 lei"},{"v":0,"d":"0.00 lei"},{"$f":"Locuință[[#This Row],[Costul estimat]]-Locuință[[#This Row],[Costul real]]","v":{"v":23,"d":"23.00 lei"}},null,"Altele",null,null,{"$f":"Distracție[[#This Row],[Costul estimat]]-Distracție[[#This Row],[Costul real]]","v":{"v":0,"d":"0.00 lei"}}]
[null,"Consumabile",{"v":0,"d":"0.00 lei"},{"v":0,"d":"0.00 lei"},{"$f":"Locuință[[#This Row],[Costul estimat]]-Locuință[[#This Row],[Costul real]]","v":{"v":0,"d":"0.00 lei"}},null,"Altele",null,null,{"$f":"Distracție[[#This Row],[Costul estimat]]-Distracție[[#This Row],[Costul real]]","v":{"v":0,"d":"0.00 lei"}}]
[null,"Altele",{"v":0,"d":"0.00 lei"},{"v":0,"d":"0.00 lei"},{"$f":"Locuință[[#This Row],[Costul estimat]]-Locuință[[#This Row],[Costul real]]","v":{"v":0,"d":"0.00 lei"}},null,"Subtotal",null,null,{"$f":"SUBTOTAL(109,Distracție[Diferență])","v":{"v":0,"d":"0.00 lei"}}]
[null,"Subtotal",null,null,{"$f":"SUBTOTAL(109,Locuință[Diferență])","v":{"v":-41,"d":"-41.00 lei"}}]
[{"$nulls":6},"ÎMPRUMUTURI","Costul estimat","Costul real","Diferență"]
["Introduceți detalii în tabelul Transport începând cu celula din dreapta, iar în tabelul Împrumuturi, începând cu celula G26. Următoarele instrucțiuni se află în celula A37.","TRANSPORT","Costul estimat","Costul real","Diferență",null,"Personal",null,null,{"$f":"Împrumuturi[[#This Row],[Costul estimat]]-Împrumuturi[[#This Row],[Costul real]]","v":{"v":0,"d":"0.00 lei"}}]
[null,"Plată vehicul",null,null,{"$f":"Transport[[#This Row],[Costul estimat]]-Transport[[#This Row],[Costul real]]","v":{"v":0,"d":"0.00 lei"}},null,"Student",null,null,{"$f":"Împrumuturi[[#This Row],[Costul estimat]]-Împrumuturi[[#This Row],[Costul real]]","v":{"v":0,"d":"0.00 lei"}}]
[null,"Tarif autobuz/taxi",null,null,{"$f":"Transport[[#This Row],[Costul estimat]]-Transport[[#This Row],[Costul real]]","v":{"v":0,"d":"0.00 lei"}},null,"Card de credit",null,null,{"$f":"Împrumuturi[[#This Row],[Costul estimat]]-Împrumuturi[[#This Row],[Costul real]]","v":{"v":0,"d":"0.00 lei"}}]
[null,"Asigurare",null,null,{"$f":"Transport[[#This Row],[Costul estimat]]-Transport[[#This Row],[Costul real]]","v":{"v":0,"d":"0.00 lei"}},null,"Card de credit",null,null,{"$f":"Împrumuturi[[#This Row],[Costul estimat]]-Împrumuturi[[#This Row],[Costul real]]","v":{"v":0,"d":"0.00 lei"}}]
[null,"Licențiere",null,null,{"$f":"Transport[[#This Row],[Costul estimat]]-Transport[[#This Row],[Costul real]]","v":{"v":0,"d":"0.00 lei"}},null,"Card de credit",null,null,{"$f":"Împrumuturi[[#This Row],[Costul estimat]]-Împrumuturi[[#This Row],[Costul real]]","v":{"v":0,"d":"0.00 lei"}}]
[null,"Benzină",null,null,{"$f":"Transport[[#This Row],[Costul estimat]]-Transport[[#This Row],[Costul real]]","v":{"v":0,"d":"0.00 lei"}},null,"Altele",null,null,{"$f":"Împrumuturi[[#This Row],[Costul estimat]]-Împrumuturi[[#This Row],[Costul real]]","v":{"v":0,"d":"0.00 lei"}}]
[null,"Întreținere",null,null,{"$f":"Transport[[#This Row],[Costul estimat]]-Transport[[#This Row],[Costul real]]","v":{"v":0,"d":"0.00 lei"}},null,"Subtotal",null,null,{"$f":"SUBTOTAL(109,Împrumuturi[Diferență])","v":{"v":0,"d":"0.00 lei"}}]
[null,"Altele",null,null,{"$f":"Transport[[#This Row],[Costul estimat]]-Transport[[#This Row],[Costul real]]","v":{"v":0,"d":"0.00 lei"}}]
[null,"Subtotal",null,null,{"$f":"SUBTOTAL(109,Transport[Diferență])","v":{"v":0,"d":"0.00 lei"}},null,"TAXE","Costul estimat","Costul real","Diferență"]
[{"$nulls":6},"Regional",null,null,{"$f":"Taxe[[#This Row],[Costul estimat]]-Taxe[[#This Row],[Costul real]]","v":{"v":0,"d":"0.00 lei"}}]
["Introduceți detalii în tabelul Asigurare începând cu celula din dreapta, iar în tabelul Taxe, începând cu celula G35. Următoarele instrucțiuni se află în celula A44.","ASIGURARE","Costul estimat","Costul real","Diferență",null,"Județ",null,null,{"$f":"Taxe[[#This Row],[Costul estimat]]-Taxe[[#This Row],[Costul real]]","v":{"v":0,"d":"0.00 lei"}}]
[null,"Pornire",null,null,{"$f":"Asigurare[[#This Row],[Costul estimat]]-Asigurare[[#This Row],[Costul real]]","v":{"v":0,"d":"0.00 lei"}},null,"Local",null,null,{"$f":"Taxe[[#This Row],[Costul estimat]]-Taxe[[#This Row],[Costul real]]","v":{"v":0,"d":"0.00 lei"}}]
[null,"Sănătate",null,null,{"$f":"Asigurare[[#This Row],[Costul estimat]]-Asigurare[[#This Row],[Costul real]]","v":{"v":0,"d":"0.00 lei"}},null,"Altele",null,null,{"$f":"Taxe[[#This Row],[Costul estimat]]-Taxe[[#This Row],[Costul real]]","v":{"v":0,"d":"0.00 lei"}}]
[null,"Viață",null,null,{"$f":"Asigurare[[#This Row],[Costul estimat]]-Asigurare[[#This Row],[Costul real]]","v":{"v":0,"d":"0.00 lei"}},null,"Subtotal",null,null,{"$f":"SUBTOTAL(109,Taxe[Diferență])","v":{"v":0,"d":"0.00 lei"}}]
[null,"Altele",null,null,{"$f":"Asigurare[[#This Row],[Costul estimat]]-Asigurare[[#This Row],[Costul real]]","v":{"v":0,"d":"0.00 lei"}}]
[null,"Subtotal",null,null,{"$f":"SUBTOTAL(109,Asigurare[Diferență])","v":{"v":0,"d":"0.00 lei"}},null,"ECONOMII SAU INVESTIȚII","Costul estimat","Costul real","Diferență"]
[{"$nulls":6},"Cont pensionare",null,null,{"$f":"Economii[[#This Row],[Costul estimat]]-Economii[[#This Row],[Costul real]]","v":{"v":0,"d":"0.00 lei"}}]
["Introduceți detalii în tabelul Alimente începând cu celula din dreapta, iar în tabelul Economii, începând cu celula G42. Următoarele instrucțiuni se află în celula A50.","ALIMENT","Costul estimat","Costul real","Diferență",null,"Cont de investiții",null,null,{"$f":"Economii[[#This Row],[Costul estimat]]-Economii[[#This Row],[Costul real]]","v":{"v":0,"d":"0.00 lei"}}]
[null,"Articole de băcănie",null,null,{"$f":"Alimente[[#This Row],[Costul estimat]]-Alimente[[#This Row],[Costul real]]","v":{"v":0,"d":"0.00 lei"}},null,"Altele",null,null,{"$f":"Economii[[#This Row],[Costul estimat]]-Economii[[#This Row],[Costul real]]","v":{"v":0,"d":"0.00 lei"}}]
[null,"Masă în oraș",null,null,{"$f":"Alimente[[#This Row],[Costul estimat]]-Alimente[[#This Row],[Costul real]]","v":{"v":0,"d":"0.00 lei"}},null,"Subtotal",null,null,{"$f":"SUBTOTAL(109,Economii[Diferență])","v":{"v":0,"d":"0.00 lei"}}]
[null,"Altele",null,null,{"$f":"Alimente[[#This Row],[Costul estimat]]-Alimente[[#This Row],[Costul real]]","v":{"v":0,"d":"0.00 lei"}}]
[null,"Subtotal",null,null,{"$f":"SUBTOTAL(109,Alimente[Diferență])","v":{"v":0,"d":"0.00 lei"}},null,"CADOURI ȘI DONAȚII","Costul estimat","Costul real","Diferență"]
[{"$nulls":6},"Caritate 1",null,null,{"$f":"Cadouri[[#This Row],[Costul estimat]]-Cadouri[[#This Row],[Costul real]]","v":{"v":0,"d":"0.00 lei"}}]
["Introduceți detalii în tabelul Animale de casă începând cu celula din dreapta, iar în tabelul Cadouri, începând cu celula G48. Următoarea instrucțiune se află în celula A58.","ANIMALE DE CASĂ","Costul estimat","Costul real","Diferență",null,"Caritate 2",null,null,{"$f":"Cadouri[[#This Row],[Costul estimat]]-Cadouri[[#This Row],[Costul real]]","v":{"v":0,"d":"0.00 lei"}}]
[null,"Alimente",null,null,{"$f":"Animale_de_casă[[#This Row],[Costul estimat]]-Animale_de_casă[[#This Row],[Costul real]]","v":{"v":0,"d":"0.00 lei"}},null,"Caritate 3",null,null,{"$f":"Cadouri[[#This Row],[Costul estimat]]-Cadouri[[#This Row],[Costul real]]","v":{"v":0,"d":"0.00 lei"}}]
[null,"Medicale",null,null,{"$f":"Animale_de_casă[[#This Row],[Costul estimat]]-Animale_de_casă[[#This Row],[Costul real]]","v":{"v":0,"d":"0.00 lei"}},null,"Subtotal",null,null,{"$f":"SUBTOTAL(109,Cadouri[Diferență])","v":{"v":0,"d":"0.00 lei"}}]
[null,"Îngrijire",null,null,{"$f":"Animale_de_casă[[#This Row],[Costul estimat]]-Animale_de_casă[[#This Row],[Costul real]]","v":{"v":0,"d":"0.00 lei"}}]
[null,"Jucării",null,null,{"$f":"Animale_de_casă[[#This Row],[Costul estimat]]-Animale_de_casă[[#This Row],[Costul real]]","v":{"v":0,"d":"0.00 lei"}},null,"JURIDIC","Costul estimat","Costul real","Diferență"]
[null,"Altele",null,null,{"$f":"Animale_de_casă[[#This Row],[Costul estimat]]-Animale_de_casă[[#This Row],[Costul real]]","v":{"v":0,"d":"0.00 lei"}},null,"Avocat",null,null,{"$f":"Juridic[[#This Row],[Costul estimat]]-Juridic[[#This Row],[Costul real]]","v":{"v":0,"d":"0.00 lei"}}]
[null,"Subtotal",null,null,{"$f":"SUBTOTAL(109,Animale_de_casă[Diferență])","v":{"v":0,"d":"0.00 lei"}},null,"Pensie",null,null,{"$f":"Juridic[[#This Row],[Costul estimat]]-Juridic[[#This Row],[Costul real]]","v":{"v":0,"d":"0.00 lei"}}]
[{"$nulls":6},"Plăți pentru sechestru sau judecată",null,null,{"$f":"Juridic[[#This Row],[Costul estimat]]-Juridic[[#This Row],[Costul real]]","v":{"v":0,"d":"0.00 lei"}}]
["Introduceți detalii în tabelul Îngrijire personală începând cu celula din dreapta, iar în tabelul Juridic, începând cu celula G54. Următoarele instrucțiuni se află în celula A61.","ÎNGRIJIRE PERSONALĂ","Costul estimat","Costul real","Diferență",null,"Altele",null,null,{"$f":"Juridic[[#This Row],[Costul estimat]]-Juridic[[#This Row],[Costul real]]","v":{"v":0,"d":"0.00 lei"}}]
[null,"Medicale",null,null,{"$f":"ÎngrijirePersonală[[#This Row],[Costul estimat]]-ÎngrijirePersonală[[#This Row],[Costul real]]","v":{"v":0,"d":"0.00 lei"}},null,"Subtotal",null,null,{"$f":"SUBTOTAL(109,Juridic[Diferență])","v":{"v":0,"d":"0.00 lei"}}]
[null,"Păr/unghii",null,null,{"$f":"ÎngrijirePersonală[[#This Row],[Costul estimat]]-ÎngrijirePersonală[[#This Row],[Costul real]]","v":{"v":0,"d":"0.00 lei"}}]
["Costul estimat total se calculează automat în celula J61, Costul efectiv total, în J63, iar Diferența totală, în J65.","Îmbrăcăminte",null,null,{"$f":"ÎngrijirePersonală[[#This Row],[Costul estimat]]-ÎngrijirePersonală[[#This Row],[Costul real]]","v":{"v":0,"d":"0.00 lei"}},null,"Costul total estimat",null,null,{"$f":"SUBTOTAL(109,Locuință[Costul estimat],Transport[Costul estimat],Asigurare[Costul estimat],Alimente[Costul estimat],Animale_de_casă[Costul estimat],ÎngrijirePersonală[Costul estimat],Distracție[Costul estimat],Împrumuturi[Costul estimat],Taxe[Costul estimat],Economii[Costul estimat],Cadouri[Costul estimat],Juridic[Costul estimat])","v":{"v":1195,"d":"1,195.00 lei"}}]
[null,"Curățătorie",null,null,{"$f":"ÎngrijirePersonală[[#This Row],[Costul estimat]]-ÎngrijirePersonală[[#This Row],[Costul real]]","v":{"v":0,"d":"0.00 lei"}}]
[null,"Club de sănătate",null,null,{"$f":"ÎngrijirePersonală[[#This Row],[Costul estimat]]-ÎngrijirePersonală[[#This Row],[Costul real]]","v":{"v":0,"d":"0.00 lei"}},null,"Costul total real",null,null,{"$f":"SUBTOTAL(109,Locuință[Costul real],Transport[Costul real],Asigurare[Costul real],Alimente[Costul real],Animale_de_casă[Costul real],ÎngrijirePersonală[Costul real],Distracție[Costul real],Împrumuturi[Costul real],Taxe[Costul real],Economii[Costul real],Cadouri[Costul real],Juridic[Costul real])","v":{"v":1236,"d":"1,236.00 lei"}}]
[null,"Datoriile sau taxele către organizație",null,null,{"$f":"ÎngrijirePersonală[[#This Row],[Costul estimat]]-ÎngrijirePersonală[[#This Row],[Costul real]]","v":{"v":0,"d":"0.00 lei"}}]
[null,"Altele",null,null,{"$f":"ÎngrijirePersonală[[#This Row],[Costul estimat]]-ÎngrijirePersonală[[#This Row],[Costul real]]","v":{"v":0,"d":"0.00 lei"}},null,"Diferență totală",null,null,{"$f":"J61-J63","v":{"v":-41,"d":"-41.00 lei"}}]
[null,"Subtotal",null,null,{"$f":"SUBTOTAL(109,ÎngrijirePersonală[Diferență])","v":{"v":0,"d":"0.00 lei"}}]